[Event "*** Titled Tuesday Blitz"]
[Site "Chess.com"]
[Date "2020.10.27"]
[Round "10"]
[White "zivicd"]
[Black "akanga001"]
[Result "1-0"]
[WhiteElo "2276"]
[BlackElo "1924"]
[TimeControl "180+1"]
[EndTime "11:56:23 PDT"]
[Termination "zivicd won by resignation"]

1. e4 {[%clk 0:02:43.3]} 1... c6 {[%clk 0:02:59.3]} 2. d4 {[%clk 0:02:41.9]}
2... d5 {[%clk 0:03:00.2]} 3. Nd2 {[%clk 0:02:41.7]} 3... dxe4 {[%clk 0:03:00]}
4. Nxe4 {[%clk 0:02:42.6]} 4... Nf6 {[%clk 0:03:00.4]} 5. Nxf6+ {[%clk
0:02:42.8]} 5... gxf6 {[%clk 0:03:01.3]} 6. c3 {[%clk 0:02:41.6]} 6... h5 {[%clk
0:02:58.6]} 7. h4 {[%clk 0:02:38.6]} 7... Bg4 {[%clk 0:02:56.7]} 8. f3 {[%clk
0:02:35]} 8... Bf5 {[%clk 0:02:56.6]} 9. Bf4 {[%clk 0:02:31.2]} 9... e6 {[%clk
0:02:54.8]} 10. Bd3 {[%clk 0:02:26.3]} 10... Bxd3 {[%clk 0:02:45.3]} 11. Qxd3
{[%clk 0:02:27.2]} 11... Bd6 {[%clk 0:02:45.4]} 12. Ne2 {[%clk 0:02:21.1]} 12...
Qc7 {[%clk 0:02:43.7]} 13. Bxd6 {[%clk 0:02:19.7]} 13... Qxd6 {[%clk 0:02:44.6]}
14. O-O-O {[%clk 0:02:19.4]} 14... Na6 {[%clk 0:02:42.2]} 15. g4 {[%clk
0:02:18.3]} 15... O-O-O {[%clk 0:02:33.7]} 16. Qe4 {[%clk 0:02:05.6]} 16... Nc7
{[%clk 0:02:29.2]} 17. Nf4 {[%clk 0:01:45.4]} 17... hxg4 {[%clk 0:02:21.6]} 18.
fxg4 {[%clk 0:01:46.3]} 18... Rdg8 {[%clk 0:02:17.3]} 19. Qf3 {[%clk 0:01:28.4]}
19... Nd5 {[%clk 0:02:12.8]} 20. Nd3 {[%clk 0:01:19]} 20... Nb6 {[%clk
0:02:01.3]} 21. Rdg1 {[%clk 0:01:14.8]} 21... Qd5 {[%clk 0:01:54.8]} 22. Qxf6
{[%clk 0:01:10.7]} 22... Qxa2 {[%clk 0:01:53]} 23. g5 {[%clk 0:01:06.5]} 23...
Qa1+ {[%clk 0:01:50.7]} 24. Kc2 {[%clk 0:01:04.7]} 24... Qa4+ {[%clk 0:01:51]}
25. Kb1 {[%clk 0:01:02.7]} 25... Qc4 {[%clk 0:01:46.8]} 26. Ne5 {[%clk 0:01:01]}
26... Qd5 {[%clk 0:01:29.4]} 27. Qxf7 {[%clk 0:00:54]} 27... Qe4+ {[%clk
0:01:27.3]} 28. Ka1 {[%clk 0:00:52.5]} 28... Qd5 {[%clk 0:01:20.8]} 29. Qf3
{[%clk 0:00:48.5]} 29... Qa5+ {[%clk 0:01:19.6]} 30. Kb1 {[%clk 0:00:47.8]}
30... Nd5 {[%clk 0:01:20]} 31. g6 {[%clk 0:00:42.5]} 31... Rf8 {[%clk
0:01:20.2]} 32. Nf7 {[%clk 0:00:42]} 32... Rhg8 {[%clk 0:01:10.4]} 33. h5 {[%clk
0:00:40.7]} 33... Ne7 {[%clk 0:01:05.8]} 34. Qf6 {[%clk 0:00:33.9]} 34... Qf5+
{[%clk 0:00:59.3]} 35. Qxf5 {[%clk 0:00:33]} 35... Nxf5 {[%clk 0:01:00.2]} 36.
Ka2 {[%clk 0:00:25.5]} 36... Ne7 {[%clk 0:00:46.4]} 37. Ne5 {[%clk 0:00:22.8]}
37... c5 {[%clk 0:00:43]} 38. h6 {[%clk 0:00:22.8]} 38... Nxg6 {[%clk
0:00:37.7]} 39. Rxg6 {[%clk 0:00:21.9]} 39... cxd4 {[%clk 0:00:34.1]} 40. Rxg8
{[%clk 0:00:21.4]} 40... Rxg8 {[%clk 0:00:33.6]} 41. h7 {[%clk 0:00:21.4]} 41...
Rh8 {[%clk 0:00:33.5]} 42. cxd4 {[%clk 0:00:21.4]} 42... Kc7 {[%clk 0:00:28.5]}
43. Kb3 {[%clk 0:00:20.8]} 43... Kd6 {[%clk 0:00:28.6]} 44. Nf7+ {[%clk
0:00:20.7]} 44... Kd5 {[%clk 0:00:27.8]} 45. Nxh8 {[%clk 0:00:21.6]} 45... Kxd4
{[%clk 0:00:28.7]} 46. Nf7 {[%clk 0:00:22.2]} 1-0

[Event "*** Titled Tuesday Blitz"]
[Site "Chess.com"]
[Date "2020.10.27"]
[Round "10"]
[White "davigator"]
[Black "TioCridineno"]
[Result "1-0"]
[WhiteElo "2364"]
[BlackElo "2227"]
[TimeControl "180+1"]
[EndTime "11:56:25 PDT"]
[Termination "davigator won by checkmate"]

1. e4 {[%clk 0:02:58.8]} 1... c5 {[%clk 0:02:55.4]} 2. Nf3 {[%clk 0:02:56.2]}
2... d6 {[%clk 0:02:55.4]} 3. d4 {[%clk 0:02:55]} 3... cxd4 {[%clk 0:02:55.9]}
4. Nxd4 {[%clk 0:02:53.4]} 4... Nf6 {[%clk 0:02:56.4]} 5. Nc3 {[%clk 0:02:53.1]}
5... a6 {[%clk 0:02:56.3]} 6. Bg5 {[%clk 0:02:52.6]} 6... e6 {[%clk 0:02:56.3]}
7. f4 {[%clk 0:02:52.1]} 7... h6 {[%clk 0:02:56.8]} 8. Bh4 {[%clk 0:02:50.2]}
8... Qb6 {[%clk 0:02:57.3]} 9. a3 {[%clk 0:02:49.9]} 9... Be7 {[%clk 0:02:57.3]}
10. Bf2 {[%clk 0:02:49.7]} 10... Qc7 {[%clk 0:02:57]} 11. Bd3 {[%clk 0:02:50.1]}
11... b6 {[%clk 0:02:55.5]} 12. Qe2 {[%clk 0:02:49.2]} 12... Bb7 {[%clk
0:02:55.4]} 13. O-O-O {[%clk 0:02:48.6]} 13... Nbd7 {[%clk 0:02:55.7]} 14. Rhe1
{[%clk 0:02:47.4]} 14... b5 {[%clk 0:02:52.1]} 15. g4 {[%clk 0:02:41.7]} 15...
g5 {[%clk 0:02:50.4]} 16. f5 {[%clk 0:02:40.7]} 16... e5 {[%clk 0:02:47.5]} 17.
Nb3 {[%clk 0:02:39.9]} 17... Nb6 {[%clk 0:02:45.5]} 18. Kb1 {[%clk 0:02:28.8]}
18... Rc8 {[%clk 0:02:42.4]} 19. Na5 {[%clk 0:02:25.8]} 19... Nc4 {[%clk
0:02:37.9]} 20. Bxc4 {[%clk 0:02:22.7]} 20... bxc4 {[%clk 0:02:36.5]} 21. Nxb7
{[%clk 0:02:14.9]} 21... Qxb7 {[%clk 0:02:35.7]} 22. Ka2 {[%clk 0:02:15.2]}
22... Rb8 {[%clk 0:02:34.4]} 23. Rb1 {[%clk 0:02:15]} 23... Kf8 {[%clk
0:02:27.7]} 24. h3 {[%clk 0:02:10.2]} 24... Kg7 {[%clk 0:02:27.5]} 25. Qxc4
{[%clk 0:02:09.4]} 25... Rhc8 {[%clk 0:02:26.2]} 26. Qd3 {[%clk 0:02:09.8]}
26... Qc6 {[%clk 0:01:43.1]} 27. Re2 {[%clk 0:02:02.8]} 27... Nd7 {[%clk
0:01:23.4]} 28. Nd5 {[%clk 0:01:59.1]} 28... Bf8 {[%clk 0:01:20.9]} 29. h4
{[%clk 0:01:47.7]} 29... Qc4+ {[%clk 0:01:17.4]} 30. Qxc4 {[%clk 0:01:47]} 30...
Rxc4 {[%clk 0:01:17.8]} 31. hxg5 {[%clk 0:01:41.5]} 31... hxg5 {[%clk 0:01:18]}
32. c3 {[%clk 0:01:41]} 32... Nf6 {[%clk 0:01:15]} 33. Nxf6 {[%clk 0:01:39.8]}
33... Kxf6 {[%clk 0:01:15.3]} 34. Rh1 {[%clk 0:01:39.4]} 34... d5 {[%clk
0:01:12.3]} 35. Rhe1 {[%clk 0:01:20.5]} 35... Bd6 {[%clk 0:01:07.1]} 36. Rd1
{[%clk 0:01:17.7]} 36... Rb5 {[%clk 0:00:53.6]} 37. Be1 {[%clk 0:01:12.7]} 37...
Ke7 {[%clk 0:00:52.6]} 38. Bd2 {[%clk 0:01:03.4]} 38... d4 {[%clk 0:00:43]} 39.
Bxg5+ {[%clk 0:00:57.8]} 39... f6 {[%clk 0:00:43.4]} 40. Bd2 {[%clk 0:00:56.7]}
40... dxc3 {[%clk 0:00:41.8]} 41. Bxc3 {[%clk 0:00:56.8]} 41... Bc5 {[%clk
0:00:30.9]} 42. Red2 {[%clk 0:00:54.6]} 42... Rxe4 {[%clk 0:00:27.5]} 43. Rd7+
{[%clk 0:00:54.4]} 43... Ke8 {[%clk 0:00:25.4]} 44. Rd8+ {[%clk 0:00:54.9]}
44... Kf7 {[%clk 0:00:25.8]} 45. R1d7+ {[%clk 0:00:55.2]} 45... Be7 {[%clk
0:00:26.1]} 46. Bb4 {[%clk 0:00:53.1]} 46... Rexb4 {[%clk 0:00:25.1]} 47. axb4
{[%clk 0:00:52.9]} 47... Rxb4 {[%clk 0:00:26]} 48. Ra8 {[%clk 0:00:49]} 48...
Kg7 {[%clk 0:00:09.8]} 49. Rxe7+ {[%clk 0:00:47.7]} 49... Kh6 {[%clk 0:00:10.7]}
50. Rg8 {[%clk 0:00:46.1]} 50... e4 {[%clk 0:00:09.9]} 51. Rg6# {[%clk
0:00:45.2]} 1-0

[Event "*** Titled Tuesday Blitz"]
[Site "Chess.com"]
[Date "2020.10.27"]
[Round "10"]
[White "Rakesh"]
[Black "FMJoseHerrera"]
[Result "0-1"]
[WhiteElo "2465"]
[BlackElo "2568"]
[TimeControl "180+1"]
[EndTime "11:56:26 PDT"]
[Termination "FMJoseHerrera won by checkmate"]

1. e4 {[%clk 0:03:00.9]} 1... c5 {[%clk 0:02:58.9]} 2. c3 {[%clk 0:03:01.1]}
2... Qa5 {[%clk 0:02:58.4]} 3. Nf3 {[%clk 0:02:51.1]} 3... e6 {[%clk 0:02:58]}
4. Bd3 {[%clk 0:02:33.7]} 4... a6 {[%clk 0:02:57.7]} 5. O-O {[%clk 0:02:30.6]}
5... b5 {[%clk 0:02:57.3]} 6. Bc2 {[%clk 0:02:30.4]} 6... Bb7 {[%clk 0:02:56.4]}
7. a4 {[%clk 0:02:30.6]} 7... b4 {[%clk 0:02:51.9]} 8. d4 {[%clk 0:02:29.4]}
8... d6 {[%clk 0:02:49.8]} 9. Nbd2 {[%clk 0:02:29.2]} 9... bxc3 {[%clk
0:02:47.1]} 10. bxc3 {[%clk 0:02:27.2]} 10... Qxc3 {[%clk 0:02:47.2]} 11. Rb1
{[%clk 0:02:26.8]} 11... Bc6 {[%clk 0:02:42.4]} 12. d5 {[%clk 0:02:24.6]} 12...
Bd7 {[%clk 0:02:39.7]} 13. dxe6 {[%clk 0:02:24.2]} 13... Bxe6 {[%clk 0:02:39.4]}
14. e5 {[%clk 0:02:20.3]} 14... d5 {[%clk 0:02:34.1]} 15. Ne4 {[%clk 0:02:16.8]}
15... Qa5 {[%clk 0:02:20.9]} 16. Nd6+ {[%clk 0:02:13.4]} 16... Bxd6 {[%clk
0:02:19]} 17. exd6 {[%clk 0:02:14.3]} 17... Nf6 {[%clk 0:02:18.7]} 18. Bg5
{[%clk 0:02:12.4]} 18... Nbd7 {[%clk 0:02:15.5]} 19. Qd3 {[%clk 0:01:57.5]}
19... O-O {[%clk 0:02:08.6]} 20. Rb7 {[%clk 0:01:50.7]} 20... c4 {[%clk
0:02:04.2]} 21. Qd4 {[%clk 0:01:45.8]} 21... h6 {[%clk 0:01:54.1]} 22. Bxh6
{[%clk 0:01:08.3]} 22... gxh6 {[%clk 0:01:47.7]} 23. Qf4 {[%clk 0:01:08.4]}
23... Kg7 {[%clk 0:01:43.7]} 24. Qg3+ {[%clk 0:01:05.7]} 24... Kh8 {[%clk
0:01:43]} 25. Qh4 {[%clk 0:01:02]} 25... Ng8 {[%clk 0:01:42.1]} 26. Qd4+ {[%clk
0:00:53.2]} 26... Ndf6 {[%clk 0:01:40.1]} 27. Ne5 {[%clk 0:00:39]} 27... Rab8
{[%clk 0:01:35.5]} 28. Re7 {[%clk 0:00:32.4]} 28... Qb6 {[%clk 0:01:33.1]} 29.
Qf4 {[%clk 0:00:31.5]} 29... d4 {[%clk 0:01:17.5]} 30. Be4 {[%clk 0:00:16.2]}
30... d3 {[%clk 0:01:17]} 31. g4 {[%clk 0:00:15.1]} 31... Kg7 {[%clk 0:01:03.5]}
32. g5 {[%clk 0:00:15]} 32... Nxe4 {[%clk 0:01:01.7]} 33. gxh6+ {[%clk
0:00:10.2]} 33... Nxh6 {[%clk 0:01:00.5]} 34. Qxe4 {[%clk 0:00:10.2]} 34... Qxd6
{[%clk 0:01:00]} 35. Ra7 {[%clk 0:00:04.2]} 35... Bf5 {[%clk 0:00:57.8]} 36. Qf4
{[%clk 0:00:04.2]} 36... Bg6 {[%clk 0:00:47]} 37. Kh1 {[%clk 0:00:04.5]} 37...
Qd5+ {[%clk 0:00:46.3]} 38. f3 {[%clk 0:00:03.7]} 38... d2 {[%clk 0:00:42.7]}
39. Rd1 {[%clk 0:00:02.7]} 39... Rb1 {[%clk 0:00:41.9]} 40. Kg2 {[%clk
0:00:01.5]} 40... Rxd1 {[%clk 0:00:41.5]} 41. Rd7 {[%clk 0:00:02.4]} 41... Qxd7
{[%clk 0:00:40.3]} 42. Nxd7 {[%clk 0:00:01.9]} 42... Rg1+ {[%clk 0:00:41.2]} 43.
Kf2 {[%clk 0:00:01.7]} 43... d1=Q {[%clk 0:00:42.1]} 44. Qf6+ {[%clk 0:00:02.4]}
44... Kg8 {[%clk 0:00:41.2]} 45. Ne5 {[%clk 0:00:02.8]} 45... Qe1# {[%clk
0:00:40.8]} 0-1

[Event "*** Titled Tuesday Blitz"]
[Site "Chess.com"]
[Date "2020.10.27"]
[Round "10"]
[White "Jumbo"]
[Black "Firouzja2003"]
[Result "0-1"]
[WhiteElo "2883"]
[BlackElo "3078"]
[TimeControl "180+1"]
[EndTime "11:56:34 PDT"]
[Termination "Firouzja2003 won on time"]

1. d4 {[%clk 0:03:00.9]} 1... b6 {[%clk 0:02:59.5]} 2. c4 {[%clk 0:03:00.5]}
2... Bb7 {[%clk 0:02:59.8]} 3. Nc3 {[%clk 0:03:00.8]} 3... e6 {[%clk 0:02:59.4]}
4. a3 {[%clk 0:03:01]} 4... f5 {[%clk 0:02:57.6]} 5. d5 {[%clk 0:02:54.6]} 5...
Nf6 {[%clk 0:02:53.1]} 6. g3 {[%clk 0:02:54.9]} 6... exd5 {[%clk 0:02:50.6]} 7.
cxd5 {[%clk 0:02:54.4]} 7... g6 {[%clk 0:02:50.6]} 8. Bg2 {[%clk 0:02:54.3]}
8... Bg7 {[%clk 0:02:50.9]} 9. Nh3 {[%clk 0:02:54.7]} 9... O-O {[%clk
0:02:50.7]} 10. O-O {[%clk 0:02:55.1]} 10... a5 {[%clk 0:02:50.8]} 11. Be3
{[%clk 0:02:47.9]} 11... Na6 {[%clk 0:02:43]} 12. Bd4 {[%clk 0:02:47.6]} 12...
h6 {[%clk 0:02:40.4]} 13. Nf4 {[%clk 0:02:43.8]} 13... Qe8 {[%clk 0:02:35]} 14.
h4 {[%clk 0:01:56.7]} 14... g5 {[%clk 0:02:32.3]} 15. hxg5 {[%clk 0:01:56.3]}
15... hxg5 {[%clk 0:02:33]} 16. Nh3 {[%clk 0:01:56.8]} 16... Qg6 {[%clk
0:02:29.9]} 17. f4 {[%clk 0:01:40.1]} 17... g4 {[%clk 0:02:18.5]} 18. Ng5 {[%clk
0:01:37.5]} 18... Rae8 {[%clk 0:02:18.3]} 19. b4 {[%clk 0:01:23.6]} 19... Nh5
{[%clk 0:02:11.1]} 20. Kf2 {[%clk 0:01:16.3]} 20... axb4 {[%clk 0:02:00.3]} 21.
axb4 {[%clk 0:01:15.9]} 21... Nxb4 {[%clk 0:01:54.8]} 22. Ra7 {[%clk 0:01:16.2]}
22... Nc2 {[%clk 0:01:44]} 23. Bxg7 {[%clk 0:01:10]} 23... Qxg7 {[%clk
0:01:20.4]} 24. Qxc2 {[%clk 0:00:47.1]} 24... Qd4+ {[%clk 0:01:18.2]} 25. Ke1
{[%clk 0:00:47.6]} 25... Nxg3 {[%clk 0:01:14.4]} 26. Rxb7 {[%clk 0:00:44]} 26...
Nxf1 {[%clk 0:00:52.3]} 27. Kxf1 {[%clk 0:00:23.9]} 27... Qxf4+ {[%clk
0:00:44.6]} 28. Nf3 {[%clk 0:00:24.2]} 28... Ra8 {[%clk 0:00:19.8]} 29. Nd1
{[%clk 0:00:10.9]} 29... Ra1 {[%clk 0:00:15.8]} 30. Qd3 {[%clk 0:00:05.2]} 30...
gxf3 {[%clk 0:00:13.8]} 31. Bxf3 {[%clk 0:00:06.1]} 31... Rf6 {[%clk 0:00:10.8]}
32. Rb8+ {[%clk 0:00:04.3]} 32... Kf7 {[%clk 0:00:09.6]} 33. d6 {[%clk
0:00:03.2]} 33... Rxd6 {[%clk 0:00:08.3]} 34. Qb3+ {[%clk 0:00:03.6]} 34... Ke7
{[%clk 0:00:05.3]} 0-1

[Event "*** Titled Tuesday Blitz"]
[Site "Chess.com"]
[Date "2020.10.27"]
[Round "10"]
[White "Sergey85Rodchenkov"]
[Black "Ajedrez_con_German"]
[Result "1-0"]
[WhiteElo "2475"]
[BlackElo "2536"]
[TimeControl "180+1"]
[EndTime "11:56:36 PDT"]
[Termination "Sergey85Rodchenkov won on time"]

1. e4 {[%clk 0:03:00.9]} 1... e6 {[%clk 0:02:59.8]} 2. d4 {[%clk 0:03:00.4]}
2... d5 {[%clk 0:03:00.2]} 3. Nd2 {[%clk 0:03:00.9]} 3... dxe4 {[%clk
0:03:01.1]} 4. Nxe4 {[%clk 0:03:00.8]} 4... Nd7 {[%clk 0:03:01.1]} 5. Nf3 {[%clk
0:03:00.5]} 5... Ngf6 {[%clk 0:03:01.3]} 6. Nxf6+ {[%clk 0:03:00.6]} 6... Nxf6
{[%clk 0:03:01.2]} 7. Bc4 {[%clk 0:03:01.1]} 7... c5 {[%clk 0:03:01.2]} 8. O-O
{[%clk 0:03:00]} 8... cxd4 {[%clk 0:03:01.1]} 9. Nxd4 {[%clk 0:03:00.1]} 9... a6
{[%clk 0:02:57.7]} 10. Bb3 {[%clk 0:02:59.3]} 10... Bc5 {[%clk 0:02:54.1]} 11.
c3 {[%clk 0:02:58]} 11... Bxd4 {[%clk 0:02:50.2]} 12. cxd4 {[%clk 0:02:57.8]}
12... Bd7 {[%clk 0:02:50.5]} 13. Bg5 {[%clk 0:02:52.9]} 13... Bc6 {[%clk
0:02:49.1]} 14. Re1 {[%clk 0:02:52.7]} 14... O-O {[%clk 0:02:45.7]} 15. Rc1
{[%clk 0:02:48.2]} 15... Qd6 {[%clk 0:02:38.1]} 16. Bxf6 {[%clk 0:02:46.2]}
16... gxf6 {[%clk 0:02:38.1]} 17. Rc3 {[%clk 0:02:43.1]} 17... Kh8 {[%clk
0:02:34.1]} 18. Qh5 {[%clk 0:02:37.8]} 18... Rg8 {[%clk 0:02:29.6]} 19. Rg3
{[%clk 0:02:35.9]} 19... Rg7 {[%clk 0:01:20]} 20. Rxg7 {[%clk 0:02:26.6]} 20...
Kxg7 {[%clk 0:01:19.8]} 21. Re3 {[%clk 0:02:26.7]} 21... Qxd4 {[%clk 0:01:10.7]}
22. Rg3+ {[%clk 0:02:21.9]} 22... Kf8 {[%clk 0:01:11.1]} 23. h3 {[%clk
0:02:17.2]} 23... Ke7 {[%clk 0:00:43.8]} 24. Qxh7 {[%clk 0:02:15.7]} 24... Qe4
{[%clk 0:00:34.7]} 25. Qh5 {[%clk 0:02:02.8]} 25... Qe1+ {[%clk 0:00:30.9]} 26.
Kh2 {[%clk 0:02:02.4]} 26... Qxf2 {[%clk 0:00:31.1]} 27. Rg7 {[%clk 0:01:55.5]}
27... Qf4+ {[%clk 0:00:30.4]} 28. Kg1 {[%clk 0:01:48.1]} 28... Qe3+ {[%clk
0:00:30.5]} 29. Kh1 {[%clk 0:01:46]} 29... Qe1+ {[%clk 0:00:26.1]} 30. Kh2
{[%clk 0:01:44.7]} 30... Qe5+ {[%clk 0:00:26.3]} 31. Qxe5 {[%clk 0:01:44.3]}
31... fxe5 {[%clk 0:00:27.2]} 32. Kg3 {[%clk 0:01:44.7]} 32... e4 {[%clk
0:00:27.7]} 33. Kf4 {[%clk 0:01:44.2]} 33... Rd8 {[%clk 0:00:27.8]} 34. g4
{[%clk 0:01:38.7]} 34... Rd3 {[%clk 0:00:27.2]} 35. g5 {[%clk 0:01:38.9]} 35...
Rf3+ {[%clk 0:00:26.9]} 36. Kg4 {[%clk 0:01:36.4]} 36... e3 {[%clk 0:00:26.1]}
37. Bc4 {[%clk 0:01:35.3]} 37... Rf2 {[%clk 0:00:25.5]} 38. g6 {[%clk
0:01:32.2]} 38... e2 {[%clk 0:00:20.6]} 39. Bxe2 {[%clk 0:01:29.1]} 39... Rxe2
{[%clk 0:00:21.2]} 40. Rxf7+ {[%clk 0:01:28.9]} 40... Ke8 {[%clk 0:00:20.2]} 41.
h4 {[%clk 0:01:23.4]} 41... Rg2+ {[%clk 0:00:18.1]} 42. Kh5 {[%clk 0:01:22.8]}
42... Be4 {[%clk 0:00:17.1]} 43. Rg7 {[%clk 0:01:22]} 43... e5 {[%clk
0:00:17.2]} 44. Kh6 {[%clk 0:01:20.8]} 44... Bf5 {[%clk 0:00:15.8]} 45. h5
{[%clk 0:01:20]} 45... e4 {[%clk 0:00:16.1]} 46. Rf7 {[%clk 0:01:16.6]} 46...
Be6 {[%clk 0:00:13.8]} 47. Rf4 {[%clk 0:01:15.2]} 47... Bd5 {[%clk 0:00:12.7]}
48. Rf5 {[%clk 0:01:15.5]} 48... Be6 {[%clk 0:00:11]} 49. Re5 {[%clk 0:01:15.6]}
49... Kd7 {[%clk 0:00:10.9]} 50. Rxe4 {[%clk 0:01:15.7]} 50... Kd6 {[%clk
0:00:11.8]} 51. a4 {[%clk 0:01:09.1]} 51... Bd5 {[%clk 0:00:10.4]} 52. Re3
{[%clk 0:01:07.8]} 52... Kc5 {[%clk 0:00:09.4]} 53. Kh7 {[%clk 0:01:04.8]} 53...
Kd4 {[%clk 0:00:09.4]} 54. Re7 {[%clk 0:01:03.8]} 54... b5 {[%clk 0:00:09.1]}
55. axb5 {[%clk 0:01:03.3]} 55... axb5 {[%clk 0:00:10]} 56. h6 {[%clk
0:01:01.5]} 56... Be4 {[%clk 0:00:10.4]} 57. Rxe4+ {[%clk 0:00:59.9]} 57... Kxe4
{[%clk 0:00:11.3]} 58. g7 {[%clk 0:01:00.3]} 1-0

[Event "*** Titled Tuesday Blitz"]
[Site "Chess.com"]
[Date "2020.10.27"]
[Round "10"]
[White "Mikhail_Golubev"]
[Black "pedromartinez91"]
[Result "0-1"]
[WhiteElo "2527"]
[BlackElo "2632"]
[TimeControl "180+1"]
[EndTime "11:56:37 PDT"]
[Termination "pedromartinez91 won on time"]

1. e4 {[%clk 0:03:00.9]} 1... e6 {[%clk 0:02:57.8]} 2. d4 {[%clk 0:03:00.4]}
2... d5 {[%clk 0:02:58.7]} 3. Nc3 {[%clk 0:03:00.6]} 3... Nf6 {[%clk 0:02:58.4]}
4. Bg5 {[%clk 0:03:00.1]} 4... h6 {[%clk 0:02:58.3]} 5. Bxf6 {[%clk 0:02:57.9]}
5... Qxf6 {[%clk 0:02:59.2]} 6. exd5 {[%clk 0:02:57.7]} 6... Bb4 {[%clk
0:02:59.1]} 7. Qd2 {[%clk 0:02:46.2]} 7... exd5 {[%clk 0:02:56.2]} 8. a3 {[%clk
0:02:45.8]} 8... Bxc3 {[%clk 0:02:39.4]} 9. Qxc3 {[%clk 0:02:43.5]} 9... Nc6
{[%clk 0:02:40.3]} 10. O-O-O {[%clk 0:02:36.5]} 10... O-O {[%clk 0:02:29.9]} 11.
Bb5 {[%clk 0:02:24.2]} 11... Ne7 {[%clk 0:02:19.6]} 12. Nf3 {[%clk 0:02:06.8]}
12... Bg4 {[%clk 0:02:19.1]} 13. Qxc7 {[%clk 0:01:58.2]} 13... Rac8 {[%clk
0:02:11.2]} 14. Qe5 {[%clk 0:01:57.7]} 14... Bf5 {[%clk 0:01:48.6]} 15. Bd3
{[%clk 0:01:52.1]} 15... Qg6 {[%clk 0:01:42.1]} 16. Nh4 {[%clk 0:00:54.1]} 16...
Qg5+ {[%clk 0:01:41]} 17. f4 {[%clk 0:00:54.1]} 17... Qxh4 {[%clk 0:01:38.5]}
18. Bxf5 {[%clk 0:00:54.1]} 18... Nc6 {[%clk 0:01:35.7]} 19. g3 {[%clk
0:00:39.8]} 19... Qd8 {[%clk 0:01:20.3]} 20. Qe3 {[%clk 0:00:34.6]} 20... Rc7
{[%clk 0:01:19.5]} 21. Kb1 {[%clk 0:00:32.7]} 21... b5 {[%clk 0:01:16.1]} 22.
Bd3 {[%clk 0:00:30.3]} 22... b4 {[%clk 0:01:14.7]} 23. a4 {[%clk 0:00:28.8]}
23... Na5 {[%clk 0:01:15]} 24. Qd2 {[%clk 0:00:16.6]} 24... Qd6 {[%clk
0:01:07.3]} 25. Rhe1 {[%clk 0:00:15.9]} 25... Rb8 {[%clk 0:01:07.2]} 26. Bb5
{[%clk 0:00:14.7]} 26... Nc4 {[%clk 0:00:57.7]} 27. Bxc4 {[%clk 0:00:13.5]}
27... dxc4 {[%clk 0:00:58.6]} 28. Qe3 {[%clk 0:00:12.3]} 28... Qd7 {[%clk
0:00:55.8]} 29. Qe5 {[%clk 0:00:10.6]} 29... b3 {[%clk 0:00:54]} 30. cxb3 {[%clk
0:00:10.3]} 30... cxb3 {[%clk 0:00:54.7]} 31. Rc1 {[%clk 0:00:09.9]} 31... Rcb7
{[%clk 0:00:55]} 32. Rc4 {[%clk 0:00:09.6]} 32... Qh3 {[%clk 0:00:47.7]} 33. Qe2
{[%clk 0:00:08]} 33... Qf5+ {[%clk 0:00:46.9]} 34. Ka1 {[%clk 0:00:08.2]} 34...
Qa5 {[%clk 0:00:39.2]} 35. Kb1 {[%clk 0:00:07.5]} 35... Rb6 {[%clk 0:00:27.6]}
36. Rec1 {[%clk 0:00:06.8]} 36... Qf5+ {[%clk 0:00:16.1]} 37. Ka1 {[%clk
0:00:06.9]} 37... Rb4 {[%clk 0:00:13.9]} 38. Rxb4 {[%clk 0:00:04.8]} 38... Rxb4
{[%clk 0:00:14.8]} 39. Qe8+ {[%clk 0:00:04.6]} 39... Kh7 {[%clk 0:00:15]} 40.
Qc6 {[%clk 0:00:03.5]} 40... Rxd4 {[%clk 0:00:13.3]} 0-1

[Event "*** Titled Tuesday Blitz"]
[Site "Chess.com"]
[Date "2020.10.27"]
[Round "10"]
[White "annamaja"]
[Black "MashaFromRussia"]
[Result "1-0"]
[WhiteElo "2299"]
[BlackElo "2355"]
[TimeControl "180+1"]
[EndTime "11:56:38 PDT"]
[Termination "annamaja won by resignation"]

1. e4 {[%clk 0:03:00.9]} 1... c5 {[%clk 0:02:59.9]} 2. Nf3 {[%clk 0:02:59.9]}
2... Nc6 {[%clk 0:03:00.2]} 3. d4 {[%clk 0:02:59.9]} 3... cxd4 {[%clk
0:03:01.1]} 4. Nxd4 {[%clk 0:03:00.7]} 4... Nf6 {[%clk 0:03:01.7]} 5. Nc3 {[%clk
0:03:01.1]} 5... e5 {[%clk 0:03:02.3]} 6. Ndb5 {[%clk 0:03:01.4]} 6... d6 {[%clk
0:03:02.8]} 7. Bg5 {[%clk 0:03:01.2]} 7... a6 {[%clk 0:03:03]} 8. Na3 {[%clk
0:03:01.9]} 8... b5 {[%clk 0:03:03.3]} 9. Nd5 {[%clk 0:03:02.3]} 9... Be7 {[%clk
0:03:03.5]} 10. Bxf6 {[%clk 0:03:02.9]} 10... Bxf6 {[%clk 0:03:04.4]} 11. c3
{[%clk 0:03:03.6]} 11... O-O {[%clk 0:03:04.2]} 12. Nc2 {[%clk 0:03:03.2]} 12...
Bg5 {[%clk 0:03:04.8]} 13. h4 {[%clk 0:03:00.3]} 13... Bh6 {[%clk 0:03:04]} 14.
g3 {[%clk 0:02:49.7]} 14... Be6 {[%clk 0:02:59.4]} 15. Bh3 {[%clk 0:02:40.7]}
15... Rb8 {[%clk 0:02:56.3]} 16. Nce3 {[%clk 0:02:20.8]} 16... b4 {[%clk
0:02:49.7]} 17. Qa4 {[%clk 0:02:10]} 17... Rb5 {[%clk 0:02:26.9]} 18. Qxa6
{[%clk 0:01:59]} 18... Rc5 {[%clk 0:02:24.3]} 19. cxb4 {[%clk 0:01:49.8]} 19...
Nb8 {[%clk 0:02:16.1]} 20. Qb7 {[%clk 0:01:41.9]} 20... Bxe3 {[%clk 0:01:17]}
21. bxc5 {[%clk 0:01:37.2]} 21... Bxc5 {[%clk 0:01:14.7]} 22. b4 {[%clk
0:01:01.6]} 22... Bd4 {[%clk 0:01:11.5]} 23. Rc1 {[%clk 0:00:59.6]} 23... Nd7
{[%clk 0:00:53.7]} 24. Rc8 {[%clk 0:00:35.9]} 24... Bxd5 {[%clk 0:00:42.8]} 25.
Rxd8 {[%clk 0:00:36]} 25... Bxb7 {[%clk 0:00:40.3]} 26. Rxd7 {[%clk 0:00:34.8]}
26... Bxe4 {[%clk 0:00:40.2]} 27. O-O {[%clk 0:00:32]} 27... d5 {[%clk
0:00:34.9]} 28. Bg2 {[%clk 0:00:24.4]} 28... Bd3 {[%clk 0:00:34.4]} 29. Rd1
{[%clk 0:00:22.8]} 29... e4 {[%clk 0:00:24.4]} 30. Rxd5 {[%clk 0:00:21.4]} 30...
Bc3 {[%clk 0:00:24.8]} 31. b5 {[%clk 0:00:17.1]} 31... f5 {[%clk 0:00:24.3]} 32.
b6 {[%clk 0:00:12.3]} 32... Rb8 {[%clk 0:00:23.4]} 33. Rd6 {[%clk 0:00:09.4]}
33... Bb4 {[%clk 0:00:17.8]} 34. Rc6 {[%clk 0:00:08.5]} 34... Bb5 {[%clk
0:00:10.1]} 35. Rc7 {[%clk 0:00:05.7]} 35... Ba5 {[%clk 0:00:10.4]} 36. Rc5
{[%clk 0:00:02.7]} 36... Bd3 {[%clk 0:00:09.5]} 37. Rxa5 {[%clk 0:00:02.6]} 1-0